[Event "Titled Tuesday Blitz April 18 Early 2023"]
[White "Kramnik, Vladimir"]
[Black "Szpar, Milosz"]
[WhiteFideId "4101588"]
[BlackFideId "1184989"]
[WhiteElo "2712"]
[BlackElo "2436"]
[Result "0-1"]
[Round "06"]
[TimeControl "180+2"]
[Date "2023.04.18"]
[WhiteClock "0:00:08"]
[BlackClock "0:00:07"]

1. e4 {[%clk 0:03:00]}  e6 {[%clk 0:02:59]} 2. d4 {[%clk 0:02:59]}  d5 {[%clk 0:02:54]} 3. e5 {[%clk 0:02:59]}  c5 {[%clk 0:02:54]} 4. c3 {[%clk 0:02:59]}  Nc6 {[%clk 0:02:53]} 5. Nf3 {[%clk 0:03:00]}  Bd7 {[%clk 0:02:51]} 6. Be2 {[%clk 0:02:59]}  Nge7 {[%clk 0:02:47]} 7. O-O {[%clk 0:02:59]}  Ng6 {[%clk 0:02:40]} 8. Be3 {[%clk 0:02:58]}  Qb6 {[%clk 0:02:27]} 9. b3 {[%clk 0:02:50]}  Be7 {[%clk 0:02:18]} 10. Nbd2 {[%clk 0:02:43]}  cxd4 {[%clk 0:02:17]} 11. cxd4 {[%clk 0:02:37]}  O-O {[%clk 0:02:16]} 12. a3 {[%clk 0:02:37]}  f6 {[%clk 0:02:14]} 13. b4 {[%clk 0:02:16]}  fxe5 {[%clk 0:02:04]} 14. Nxe5 {[%clk 0:02:11]}  Ncxe5 {[%clk 0:01:23]} 15. dxe5 {[%clk 0:02:10]}  Qc7 {[%clk 0:01:20]} 16. f4 {[%clk 0:02:01]}  d4 {[%clk 0:01:20]} 17. Bxd4 {[%clk 0:01:39]}  Nxf4 {[%clk 0:01:20]} 18. Ne4 {[%clk 0:00:56]}  Bc6 {[%clk 0:01:13]} 19. Nf6+ {[%clk 0:00:53]}  Bxf6 {[%clk 0:00:42]} 20. exf6 {[%clk 0:00:52]}  Rad8 {[%clk 0:00:42]} 21. Bc4 {[%clk 0:00:41]}  Bxg2 {[%clk 0:00:31]} 22. Rxf4 {[%clk 0:00:41]}  Qxf4 {[%clk 0:00:21]} 23. Bxe6+ {[%clk 0:00:40]}  Rf7 {[%clk 0:00:22]} 24. Bxf7+ {[%clk 0:00:33]}  Kxf7 {[%clk 0:00:23]} 25. Qh5+ {[%clk 0:00:32]}  Kg8 {[%clk 0:00:18]} 26. Kxg2 {[%clk 0:00:20]}  Qe4+ {[%clk 0:00:12]} 27. Kh3 {[%clk 0:00:16]}  Rxd4 {[%clk 0:00:10]} 28. Rg1 {[%clk 0:00:13]}  Rd3+ {[%clk 0:00:09]} 29. Rg3 {[%clk 0:00:13]}  Qe6+ {[%clk 0:00:09]} 30. Kh4 {[%clk 0:00:05]}  Rd4+ {[%clk 0:00:09]} 31. Rg4 {[%clk 0:00:04]}  Rxg4+ {[%clk 0:00:07]} 32. Qxg4 {[%clk 0:00:03]}  Qxg4+ {[%clk 0:00:07]} 33. Kxg4 {[%clk 0:00:04]}  gxf6 {[%clk 0:00:07]} 34. Kf5 {[%clk 0:00:04]}  Kf7 {[%clk 0:00:07]} 35. b5 {[%clk 0:00:05]}  b6 {[%clk 0:00:04]} 36. a4 {[%clk 0:00:05]}  Ke7 {[%clk 0:00:05]} 37. h3 {[%clk 0:00:05]}  Kf7 {[%clk 0:00:05]} 38. h4 {[%clk 0:00:05]}  Ke7 {[%clk 0:00:06]} 39. h5 {[%clk 0:00:04]}  Kf7 {[%clk 0:00:06]} 40. h6 {[%clk 0:00:04]}  Ke7 {[%clk 0:00:06]} 41. Ke4 {[%clk 0:00:04]}  Ke6 {[%clk 0:00:07]} 42. Kf4 {[%clk 0:00:04]}  f5 {[%clk 0:00:06]} 43. Kg5 {[%clk 0:00:04]}  Ke5 {[%clk 0:00:07]} 44. Kh5 {[%clk 0:00:04]}  Kf6 {[%clk 0:00:07]} 45. Kh4 {[%clk 0:00:04]}  Kg6 {[%clk 0:00:07]} 46. Kg3 {[%clk 0:00:05]}  Kg5 {[%clk 0:00:05]} 47. Kf3 {[%clk 0:00:05]}  Kxh6 {[%clk 0:00:04]} 48. Kf4 {[%clk 0:00:05]}  Kg6 {[%clk 0:00:04]} 49. Ke5 {[%clk 0:00:05]}  Kg5 {[%clk 0:00:05]} 50. Kd6 {[%clk 0:00:06]}  f4 {[%clk 0:00:05]} 51. Kc7 {[%clk 0:00:07]}  f3 {[%clk 0:00:06]} 52. Kb7 {[%clk 0:00:07]}  f2 {[%clk 0:00:07]} 53. Kxa7 {[%clk 0:00:08]}  f1=Q {[%clk 0:00:07]} 0-1


[Site "https://www.chess.com"]

[Event "Titled Tuesday Blitz April 18 Early 2023"]
[White "Puranik, Abhimanyu"]
[Black "Harsh Suresh"]
[WhiteFideId "5061245"]
[BlackFideId "45018464"]
[WhiteElo "2477"]
[BlackElo "2227"]
[Result "1-0"]
[Round "06"]
[TimeControl "180+2"]
[Date "2023.04.18"]
[WhiteClock "0:02:08"]
[BlackClock "0:01:01"]

1. e4 {[%clk 0:03:00]}  c5 {[%clk 0:02:58]} 2. Nc3 {[%clk 0:03:00]}  Nc6 {[%clk 0:02:51]} 3. Bb5 {[%clk 0:02:59]}  Nd4 {[%clk 0:02:51]} 4. Nf3 {[%clk 0:02:59]}  a6 {[%clk 0:02:49]} 5. Bd3 {[%clk 0:02:58]}  Nc6 {[%clk 0:02:43]} 6. O-O {[%clk 0:02:57]}  g6 {[%clk 0:02:43]} 7. b3 {[%clk 0:02:56]}  Bg7 {[%clk 0:02:43]} 8. Bb2 {[%clk 0:02:56]}  e6 {[%clk 0:02:43]} 9. Re1 {[%clk 0:02:46]}  Nge7 {[%clk 0:02:43]} 10. e5 {[%clk 0:02:46]}  O-O {[%clk 0:02:29]} 11. Ne4 {[%clk 0:02:45]}  b6 {[%clk 0:02:29]} 12. Nf6+ {[%clk 0:02:37]}  Bxf6 {[%clk 0:02:19]} 13. exf6 {[%clk 0:02:38]}  Nd5 {[%clk 0:02:19]} 14. Be4 {[%clk 0:02:39]}  Nxf6 {[%clk 0:02:16]} 15. Bxc6 {[%clk 0:02:38]}  dxc6 {[%clk 0:02:17]} 16. Qe2 {[%clk 0:02:37]}  Nd7 {[%clk 0:02:10]} 17. d4 {[%clk 0:02:33]}  cxd4 {[%clk 0:02:02]} 18. Nxd4 {[%clk 0:02:33]}  Bb7 {[%clk 0:01:54]} 19. Rad1 {[%clk 0:02:22]}  Qe7 {[%clk 0:01:48]} 20. Qe3 {[%clk 0:02:11]}  c5 {[%clk 0:01:33]} 21. Nf5 {[%clk 0:02:11]}  exf5 {[%clk 0:01:02]} 22. Qxe7 {[%clk 0:02:10]}  Bc6 {[%clk 0:01:01]} 23. Rxd7 {[%clk 0:02:08]}  Bxd7 {[%clk 0:01:02]} 24. Qf6 {[%clk 0:02:08]}  Rfe8 {[%clk 0:01:01]} 25. Qg7# {[%clk 0:02:08]} 1-0


[Site "https://www.chess.com"]

[Event "Titled Tuesday Blitz April 18 Early 2023"]
[White "Alekseenko, Kirill"]
[Black "Wagner, Dennis"]
[WhiteFideId "4135539"]
[BlackFideId "24650684"]
[WhiteElo "2683"]
[BlackElo "2470"]
[Result "1-0"]
[Round "06"]
[TimeControl "180+2"]
[Date "2023.04.18"]
[WhiteClock "0:00:16"]
[BlackClock "0:00:16"]

1. d4 {[%clk 0:03:00]}  Nf6 {[%clk 0:02:59]} 2. Nc3 {[%clk 0:03:01]}  d5 {[%clk 0:02:59]} 3. Bg5 {[%clk 0:03:01]}  c5 {[%clk 0:02:59]} 4. e3 {[%clk 0:02:57]}  cxd4 {[%clk 0:02:58]} 5. exd4 {[%clk 0:02:56]}  Nc6 {[%clk 0:02:58]} 6. Nf3 {[%clk 0:02:52]}  e6 {[%clk 0:02:50]} 7. Bb5 {[%clk 0:02:47]}  Bd7 {[%clk 0:02:49]} 8. O-O {[%clk 0:02:47]}  Be7 {[%clk 0:02:49]} 9. Bxc6 {[%clk 0:02:46]}  Bxc6 {[%clk 0:02:48]} 10. Ne5 {[%clk 0:02:47]}  Rc8 {[%clk 0:02:48]} 11. Qf3 {[%clk 0:02:42]}  h6 {[%clk 0:02:45]} 12. Bh4 {[%clk 0:02:38]}  O-O {[%clk 0:02:45]} 13. Rad1 {[%clk 0:02:37]}  b5 {[%clk 0:02:18]} 14. a3 {[%clk 0:02:30]}  a6 {[%clk 0:02:12]} 15. Rfe1 {[%clk 0:02:29]}  Bb7 {[%clk 0:02:11]} 16. h3 {[%clk 0:02:29]}  Ne4 {[%clk 0:02:09]} 17. Bxe7 {[%clk 0:02:25]}  Qxe7 {[%clk 0:02:10]} 18. Re3 {[%clk 0:02:17]}  f6 {[%clk 0:01:58]} 19. Ng6 {[%clk 0:02:15]}  Qf7 {[%clk 0:01:46]} 20. Nxf8 {[%clk 0:02:15]}  Qxf8 {[%clk 0:01:46]} 21. Rde1 {[%clk 0:02:07]}  Qd6 {[%clk 0:01:45]} 22. Qe2 {[%clk 0:01:57]}  Rc4 {[%clk 0:01:41]} 23. Nxe4 {[%clk 0:01:57]}  dxe4 {[%clk 0:01:41]} 24. c3 {[%clk 0:01:57]}  f5 {[%clk 0:01:40]} 25. f3 {[%clk 0:01:43]}  exf3 {[%clk 0:01:33]} 26. Rxe6 {[%clk 0:01:35]}  Qf4 {[%clk 0:01:25]} 27. Qe3 {[%clk 0:01:22]}  Qxe3+ {[%clk 0:01:11]} 28. R1xe3 {[%clk 0:01:23]}  fxg2 {[%clk 0:01:12]} 29. Re8+ {[%clk 0:01:23]}  Kh7 {[%clk 0:01:11]} 30. R8e7 {[%clk 0:01:23]}  Bd5 {[%clk 0:00:56]} 31. Rg3 {[%clk 0:01:22]}  Kg8 {[%clk 0:00:50]} 32. Rexg7+ {[%clk 0:01:14]}  Kf8 {[%clk 0:00:50]} 33. Rd7 {[%clk 0:01:15]}  Be4 {[%clk 0:00:49]} 34. Rg6 {[%clk 0:01:10]}  Rc8 {[%clk 0:00:44]} 35. Rxh6 {[%clk 0:01:10]}  Kg8 {[%clk 0:00:42]} 36. Rg6+ {[%clk 0:01:08]}  Kh8 {[%clk 0:00:41]} 37. Rxg2 {[%clk 0:00:54]}  Bxg2 {[%clk 0:00:40]} 38. Kxg2 {[%clk 0:00:55]}  Re8 {[%clk 0:00:37]} 39. Kf2 {[%clk 0:00:50]}  Re4 {[%clk 0:00:34]} 40. Rd6 {[%clk 0:00:50]}  Rh4 {[%clk 0:00:34]} 41. Kg3 {[%clk 0:00:49]}  Re4 {[%clk 0:00:34]} 42. Rxa6 {[%clk 0:00:37]}  Re2 {[%clk 0:00:34]} 43. b4 {[%clk 0:00:37]}  Re3+ {[%clk 0:00:32]} 44. Kf4 {[%clk 0:00:38]}  Rxh3 {[%clk 0:00:33]} 45. Kxf5 {[%clk 0:00:37]}  Rxc3 {[%clk 0:00:33]} 46. Ra7 {[%clk 0:00:36]}  Kg8 {[%clk 0:00:32]} 47. d5 {[%clk 0:00:31]}  Kf8 {[%clk 0:00:32]} 48. Ke6 {[%clk 0:00:32]}  Rh3 {[%clk 0:00:28]} 49. Ra8+ {[%clk 0:00:31]}  Kg7 {[%clk 0:00:28]} 50. d6 {[%clk 0:00:32]}  Re3+ {[%clk 0:00:27]} 51. Kd5 {[%clk 0:00:28]}  Kf7 {[%clk 0:00:26]} 52. Kc6 {[%clk 0:00:28]}  Rc3+ {[%clk 0:00:24]} 53. Kxb5 {[%clk 0:00:28]}  Ke6 {[%clk 0:00:25]} 54. Ra6 {[%clk 0:00:26]}  Kd7 {[%clk 0:00:24]} 55. a4 {[%clk 0:00:24]}  Rc1 {[%clk 0:00:23]} 56. Rb6 {[%clk 0:00:23]}  Rc2 {[%clk 0:00:23]} 57. a5 {[%clk 0:00:23]}  Rc1 {[%clk 0:00:23]} 58. Ka6 {[%clk 0:00:22]}  Kc8 {[%clk 0:00:21]} 59. Ka7 {[%clk 0:00:17]}  Rc4 {[%clk 0:00:16]} 60. b5 {[%clk 0:00:16]} 1-0


[Site "https://www.chess.com"]

[Event "Titled Tuesday Blitz April 18 Early 2023"]
[White "Chigaev, Maksim"]
[Black "Manukyan, Sargis A."]
[WhiteFideId "4108116"]
[BlackFideId "13303970"]
[WhiteElo "2547"]
[BlackElo "2187"]
[Result "1-0"]
[Round "06"]
[TimeControl "180+2"]
[Date "2023.04.18"]
[WhiteClock "0:01:48"]
[BlackClock "0:01:11"]

1. d4 {[%clk 0:03:00]}  d5 {[%clk 0:02:59]} 2. Nf3 {[%clk 0:02:59]}  e6 {[%clk 0:03:00]} 3. Bf4 {[%clk 0:02:59]}  c5 {[%clk 0:02:57]} 4. e3 {[%clk 0:03:00]}  Nc6 {[%clk 0:02:58]} 5. Nbd2 {[%clk 0:03:00]}  Nf6 {[%clk 0:02:49]} 6. c3 {[%clk 0:02:59]}  c4 {[%clk 0:02:49]} 7. Ne5 {[%clk 0:02:48]}  Nxe5 {[%clk 0:02:48]} 8. Bxe5 {[%clk 0:02:46]}  Bd6 {[%clk 0:02:47]} 9. f4 {[%clk 0:02:47]}  Bxe5 {[%clk 0:02:47]} 10. fxe5 {[%clk 0:02:48]}  Nd7 {[%clk 0:02:42]} 11. Qg4 {[%clk 0:02:48]}  g6 {[%clk 0:02:40]} 12. Be2 {[%clk 0:02:48]}  h5 {[%clk 0:02:40]} 13. Qf4 {[%clk 0:02:46]}  O-O {[%clk 0:02:36]} 14. Qh6 {[%clk 0:02:40]}  b5 {[%clk 0:02:09]} 15. Nf3 {[%clk 0:02:36]}  f6 {[%clk 0:01:47]} 16. Qxg6+ {[%clk 0:02:32]}  Kh8 {[%clk 0:01:47]} 17. Qxh5+ {[%clk 0:02:30]}  Kg8 {[%clk 0:01:47]} 18. exf6 {[%clk 0:02:21]}  Qxf6 {[%clk 0:01:45]} 19. O-O {[%clk 0:02:21]}  Qf7 {[%clk 0:01:35]} 20. Qh4 {[%clk 0:02:13]}  Qh7 {[%clk 0:01:33]} 21. Qxh7+ {[%clk 0:02:12]}  Kxh7 {[%clk 0:01:33]} 22. Ng5+ {[%clk 0:02:13]}  Kg8 {[%clk 0:01:31]} 23. Nxe6 {[%clk 0:02:13]}  Rxf1+ {[%clk 0:01:19]} 24. Rxf1 {[%clk 0:02:14]}  a5 {[%clk 0:01:18]} 25. Nc7 {[%clk 0:02:12]}  Rb8 {[%clk 0:01:15]} 26. Nxd5 {[%clk 0:02:08]}  Bb7 {[%clk 0:01:14]} 27. Nf6+ {[%clk 0:02:07]}  Nxf6 {[%clk 0:01:15]} 28. Rxf6 {[%clk 0:02:07]}  b4 {[%clk 0:01:16]} 29. Bxc4+ {[%clk 0:02:07]}  Kh8 {[%clk 0:01:16]} 30. Rb6 {[%clk 0:02:05]}  bxc3 {[%clk 0:01:15]} 31. bxc3 {[%clk 0:02:06]}  a4 {[%clk 0:01:16]} 32. Bd5 {[%clk 0:02:05]}  a3 {[%clk 0:01:14]} 33. Rxb7 {[%clk 0:02:05]}  Rf8 {[%clk 0:01:14]} 34. Bf3 {[%clk 0:01:57]}  Rg8 {[%clk 0:01:11]} 35. Ra7 {[%clk 0:01:48]} 1-0


[Site "https://www.chess.com"]

[Event "Titled Tuesday Blitz April 18 Early 2023"]
[White "Dehtiarov, Roman"]
[Black "Gupta, Abhijeet"]
[WhiteFideId "14186640"]
[BlackFideId "5010608"]
[WhiteElo "2189"]
[BlackElo "2528"]
[Result "0-1"]
[Round "06"]
[TimeControl "180+2"]
[Date "2023.04.18"]
[WhiteClock "0:01:14"]
[BlackClock "0:01:50"]

1. c4 {[%clk 0:03:00]}  Nf6 {[%clk 0:03:00]} 2. Nc3 {[%clk 0:02:59]}  Nc6 {[%clk 0:02:55]} 3. d4 {[%clk 0:02:57]}  e5 {[%clk 0:02:55]} 4. d5 {[%clk 0:02:57]}  Ne7 {[%clk 0:02:55]} 5. e4 {[%clk 0:02:57]}  Ng6 {[%clk 0:02:55]} 6. Bd3 {[%clk 0:02:54]}  Bc5 {[%clk 0:02:51]} 7. a3 {[%clk 0:02:45]}  a5 {[%clk 0:02:49]} 8. Nf3 {[%clk 0:02:40]}  d6 {[%clk 0:02:48]} 9. Qe2 {[%clk 0:02:40]}  O-O {[%clk 0:02:45]} 10. Be3 {[%clk 0:02:38]}  Bxe3 {[%clk 0:02:40]} 11. fxe3 {[%clk 0:02:39]}  c6 {[%clk 0:02:37]} 12. O-O {[%clk 0:02:37]}  cxd5 {[%clk 0:02:32]} 13. exd5 {[%clk 0:02:37]}  Bd7 {[%clk 0:02:26]} 14. Kh1 {[%clk 0:02:36]}  Ne8 {[%clk 0:02:23]} 15. b4 {[%clk 0:02:33]}  f5 {[%clk 0:02:19]} 16. e4 {[%clk 0:02:30]}  Nf4 {[%clk 0:02:18]} 17. Qc2 {[%clk 0:02:28]}  axb4 {[%clk 0:02:17]} 18. axb4 {[%clk 0:02:27]}  Rxa1 {[%clk 0:02:16]} 19. Rxa1 {[%clk 0:02:28]}  Qb6 {[%clk 0:02:15]} 20. Rb1 {[%clk 0:02:05]}  Qe3 {[%clk 0:02:07]} 21. Rd1 {[%clk 0:01:59]}  Nf6 {[%clk 0:02:04]} 22. exf5 {[%clk 0:01:51]}  Ng4 {[%clk 0:01:56]} 23. h3 {[%clk 0:01:18]}  Nf2+ {[%clk 0:01:53]} 24. Kh2 {[%clk 0:01:18]}  Nxd1 {[%clk 0:01:52]} 25. f6 {[%clk 0:01:14]}  Qxd3 {[%clk 0:01:50]} 0-1


[Site "https://www.chess.com"]

[Event "Titled Tuesday Blitz April 18 Early 2023"]
[White "Yeletsky, Ivan"]
[Black "Kucuksari, Kaan"]
[WhiteFideId "24180327"]
[BlackFideId "6380166"]
[WhiteElo "2422"]
[BlackElo "2364"]
[Result "1-0"]
[Round "06"]
[TimeControl "180+2"]
[Date "2023.04.18"]
[WhiteClock "0:00:06"]
[BlackClock "0:00:02"]

1. e4 {[%clk 0:03:00]}  c5 {[%clk 0:02:59]} 2. Nf3 {[%clk 0:03:00]}  e6 {[%clk 0:02:58]} 3. d4 {[%clk 0:02:59]}  cxd4 {[%clk 0:02:58]} 4. g3 {[%clk 0:02:59]}  e5 {[%clk 0:02:56]} 5. c3 {[%clk 0:02:57]}  dxc3 {[%clk 0:02:53]} 6. Nxc3 {[%clk 0:02:57]}  Nc6 {[%clk 0:02:54]} 7. Bh3 {[%clk 0:02:55]}  Nf6 {[%clk 0:02:38]} 8. O-O {[%clk 0:02:54]}  Be7 {[%clk 0:02:26]} 9. Bg5 {[%clk 0:02:51]}  d6 {[%clk 0:02:09]} 10. Bxc8 {[%clk 0:02:49]}  Rxc8 {[%clk 0:02:10]} 11. Bxf6 {[%clk 0:02:42]}  Bxf6 {[%clk 0:02:11]} 12. Rc1 {[%clk 0:02:03]}  O-O {[%clk 0:02:06]} 13. Nd5 {[%clk 0:02:02]}  Bg5 {[%clk 0:01:41]} 14. Rc3 {[%clk 0:01:53]}  Bh6 {[%clk 0:01:37]} 15. Qc2 {[%clk 0:01:18]}  Qd7 {[%clk 0:01:17]} 16. b4 {[%clk 0:01:13]}  Kh8 {[%clk 0:00:59]} 17. Rd1 {[%clk 0:00:59]}  b5 {[%clk 0:00:28]} 18. Kg2 {[%clk 0:00:37]}  Qb7 {[%clk 0:00:12]} 19. a4 {[%clk 0:00:30]}  bxa4 {[%clk 0:00:11]} 20. Qxa4 {[%clk 0:00:28]}  Ne7 {[%clk 0:00:06]} 21. Ra3 {[%clk 0:00:20]}  Nxd5 {[%clk 0:00:06]} 22. Rxd5 {[%clk 0:00:21]}  f5 {[%clk 0:00:05]} 23. Qxa7 {[%clk 0:00:11]}  Qxa7 {[%clk 0:00:06]} 24. Rxa7 {[%clk 0:00:11]}  fxe4 {[%clk 0:00:07]} 25. Nh4 {[%clk 0:00:08]}  e3 {[%clk 0:00:04]} 26. fxe3 {[%clk 0:00:08]}  Bxe3 {[%clk 0:00:05]} 27. Rb7 {[%clk 0:00:09]}  Rc2+ {[%clk 0:00:04]} 28. Kh3 {[%clk 0:00:10]}  g6 {[%clk 0:00:04]} 29. Rxd6 {[%clk 0:00:09]}  Bg1 {[%clk 0:00:04]} 30. Rdd7 {[%clk 0:00:05]}  Rxh2+ {[%clk 0:00:03]} 31. Kg4 {[%clk 0:00:06]}  h5+ {[%clk 0:00:02]} 32. Kg5 {[%clk 0:00:06]} 1-0


[Site "https://www.chess.com"]

[Event "Titled Tuesday Blitz April 18 Early 2023"]
[White "Zakhartsov, Vladimir"]
[Black "Kozin, Yuri"]
[WhiteFideId "4145097"]
[BlackFideId "4129920"]
[WhiteElo "2497"]
[BlackElo "2640"]
[Result "1-0"]
[Round "06"]
[TimeControl "180+2"]
[Date "2023.04.18"]
[WhiteClock "0:00:26"]
[BlackClock "0:00:19"]

1. d4 {[%clk 0:02:51]}  d5 {[%clk 0:02:59]} 2. c4 {[%clk 0:02:51]}  c6 {[%clk 0:02:59]} 3. Nf3 {[%clk 0:02:51]}  Nf6 {[%clk 0:03:00]} 4. Nbd2 {[%clk 0:02:50]}  a6 {[%clk 0:02:47]} 5. e3 {[%clk 0:02:48]}  Bf5 {[%clk 0:02:41]} 6. Nh4 {[%clk 0:02:33]}  Bg6 {[%clk 0:02:37]} 7. Nxg6 {[%clk 0:02:33]}  hxg6 {[%clk 0:02:37]} 8. Bd3 {[%clk 0:02:34]}  e6 {[%clk 0:02:34]} 9. h3 {[%clk 0:02:26]}  Be7 {[%clk 0:02:31]} 10. Nf3 {[%clk 0:02:26]}  O-O {[%clk 0:02:30]} 11. O-O {[%clk 0:02:25]}  Nbd7 {[%clk 0:02:31]} 12. Qe2 {[%clk 0:02:23]}  Qc7 {[%clk 0:02:28]} 13. e4 {[%clk 0:02:17]}  dxe4 {[%clk 0:02:26]} 14. Bxe4 {[%clk 0:02:18]}  Nxe4 {[%clk 0:02:27]} 15. Qxe4 {[%clk 0:02:19]}  b5 {[%clk 0:02:23]} 16. b3 {[%clk 0:02:07]}  bxc4 {[%clk 0:02:18]} 17. bxc4 {[%clk 0:02:06]}  c5 {[%clk 0:02:18]} 18. Bb2 {[%clk 0:01:57]}  cxd4 {[%clk 0:02:16]} 19. Nxd4 {[%clk 0:01:50]}  Bf6 {[%clk 0:01:59]} 20. Rac1 {[%clk 0:01:49]}  Rab8 {[%clk 0:01:58]} 21. Ba1 {[%clk 0:01:48]}  Nc5 {[%clk 0:01:55]} 22. Qf3 {[%clk 0:01:44]}  Rbd8 {[%clk 0:01:47]} 23. Nb3 {[%clk 0:01:42]}  Rd3 {[%clk 0:01:40]} 24. Qe2 {[%clk 0:01:42]}  Rfd8 {[%clk 0:01:33]} 25. Bxf6 {[%clk 0:01:39]}  gxf6 {[%clk 0:01:34]} 26. Rfd1 {[%clk 0:01:34]}  Nxb3 {[%clk 0:01:25]} 27. axb3 {[%clk 0:01:34]}  Rxb3 {[%clk 0:01:24]} 28. Rxd8+ {[%clk 0:01:34]}  Qxd8 {[%clk 0:01:25]} 29. c5 {[%clk 0:01:35]}  Qd3 {[%clk 0:01:19]} 30. Qa2 {[%clk 0:01:18]}  Rc3 {[%clk 0:01:12]} 31. Qa1 {[%clk 0:01:13]}  Rc2 {[%clk 0:00:48]} 32. Qb1 {[%clk 0:00:39]}  Rd2 {[%clk 0:00:44]} 33. Qb8+ {[%clk 0:00:35]}  Qd8 {[%clk 0:00:44]} 34. Qf4 {[%clk 0:00:32]}  e5 {[%clk 0:00:40]} 35. Qc4 {[%clk 0:00:30]}  Qc8 {[%clk 0:00:29]} 36. c6 {[%clk 0:00:29]}  a5 {[%clk 0:00:30]} 37. c7 {[%clk 0:00:29]}  a4 {[%clk 0:00:25]} 38. Qxa4 {[%clk 0:00:26]}  Rd7 {[%clk 0:00:19]} 39. Qxd7 {[%clk 0:00:26]} 1-0


[Site "https://www.chess.com"]

[Event "Titled Tuesday Blitz April 18 Early 2023"]
[White "Skatchkov, Valery"]
[Black "Pichot, Alan"]
[WhiteFideId "24195812"]
[BlackFideId "110973"]
[WhiteElo "2262"]
[BlackElo "2573"]
[Result "0-1"]
[Round "06"]
[TimeControl "180+2"]
[Date "2023.04.18"]
[WhiteClock "0:00:06"]
[BlackClock "0:00:25"]

1. d4 {[%clk 0:02:58]}  Nf6 {[%clk 0:02:57]} 2. c4 {[%clk 0:02:57]}  e6 {[%clk 0:02:57]} 3. Nf3 {[%clk 0:02:57]}  d5 {[%clk 0:02:56]} 4. g3 {[%clk 0:02:54]}  Be7 {[%clk 0:02:54]} 5. Bg2 {[%clk 0:02:53]}  O-O {[%clk 0:02:55]} 6. Nc3 {[%clk 0:02:54]}  dxc4 {[%clk 0:02:53]} 7. Ne5 {[%clk 0:02:53]}  c5 {[%clk 0:02:53]} 8. dxc5 {[%clk 0:02:45]}  Qc7 {[%clk 0:02:53]} 9. Nxc4 {[%clk 0:02:43]}  Qxc5 {[%clk 0:02:54]} 10. b3 {[%clk 0:02:22]}  Nc6 {[%clk 0:02:53]} 11. O-O {[%clk 0:02:18]}  Rd8 {[%clk 0:02:52]} 12. Qc2 {[%clk 0:02:14]}  Nd4 {[%clk 0:02:30]} 13. Qb2 {[%clk 0:02:09]}  Qh5 {[%clk 0:02:24]} 14. Be3 {[%clk 0:02:03]}  Nf5 {[%clk 0:02:24]} 15. h3 {[%clk 0:01:56]}  Nxe3 {[%clk 0:02:20]} 16. Nxe3 {[%clk 0:01:56]}  Bc5 {[%clk 0:02:16]} 17. Rad1 {[%clk 0:01:49]}  Bd7 {[%clk 0:02:09]} 18. Bxb7 {[%clk 0:01:21]}  Rab8 {[%clk 0:02:05]} 19. Bg2 {[%clk 0:01:21]}  Bxe3 {[%clk 0:02:02]} 20. fxe3 {[%clk 0:01:21]}  Qe5 {[%clk 0:02:02]} 21. Rd3 {[%clk 0:00:42]}  Bb5 {[%clk 0:01:52]} 22. Rxd8+ {[%clk 0:00:42]}  Rxd8 {[%clk 0:01:52]} 23. Kh2 {[%clk 0:00:38]}  h5 {[%clk 0:01:47]} 24. Rf4 {[%clk 0:00:34]}  Bxe2 {[%clk 0:01:38]} 25. Qxe2 {[%clk 0:00:32]}  Qxc3 {[%clk 0:01:38]} 26. Rc4 {[%clk 0:00:30]}  Qe5 {[%clk 0:01:34]} 27. Qc2 {[%clk 0:00:29]}  Qxe3 {[%clk 0:01:31]} 28. a4 {[%clk 0:00:29]}  Qe5 {[%clk 0:01:02]} 29. b4 {[%clk 0:00:26]}  g5 {[%clk 0:00:56]} 30. Rc5 {[%clk 0:00:27]}  Nd5 {[%clk 0:00:54]} 31. Qc4 {[%clk 0:00:11]}  h4 {[%clk 0:00:50]} 32. Qg4 {[%clk 0:00:11]}  Kg7 {[%clk 0:00:45]} 33. b5 {[%clk 0:00:07]}  Qe3 {[%clk 0:00:30]} 34. Rc4 {[%clk 0:00:05]}  Nf6 {[%clk 0:00:30]} 35. Qf3 {[%clk 0:00:04]}  Qxf3 {[%clk 0:00:25]} 36. Bxf3 {[%clk 0:00:05]}  Rd3 {[%clk 0:00:26]} 37. Kg1 {[%clk 0:00:06]}  Rxf3 {[%clk 0:00:25]} 0-1


[Site "https://www.chess.com"]

[Event "Titled Tuesday Blitz April 18 Early 2023"]
[White "Narayanan.S.L"]
[Black "Prohaszka, Peter"]
[WhiteFideId "5058422"]
[BlackFideId "726265"]
[WhiteElo "2547"]
[BlackElo "2626"]
[Result "1-0"]
[Round "06"]
[TimeControl "180+2"]
[Date "2023.04.18"]
[WhiteClock "0:00:20"]
[BlackClock "0:00:01"]

1. e4 {[%clk 0:03:00]}  c6 {[%clk 0:02:52]} 2. d3 {[%clk 0:02:58]}  d5 {[%clk 0:02:53]} 3. Be2 {[%clk 0:02:58]}  Qc7 {[%clk 0:02:47]} 4. Nf3 {[%clk 0:02:48]}  e5 {[%clk 0:02:47]} 5. O-O {[%clk 0:02:48]}  Nf6 {[%clk 0:02:45]} 6. Nbd2 {[%clk 0:02:48]}  Bd6 {[%clk 0:02:39]} 7. c3 {[%clk 0:02:48]}  O-O {[%clk 0:02:39]} 8. Re1 {[%clk 0:02:49]}  Re8 {[%clk 0:02:39]} 9. Bf1 {[%clk 0:02:50]}  Bg4 {[%clk 0:02:38]} 10. h3 {[%clk 0:02:49]}  Bh5 {[%clk 0:02:38]} 11. Qc2 {[%clk 0:02:47]}  Nbd7 {[%clk 0:02:38]} 12. Nh4 {[%clk 0:02:47]}  a5 {[%clk 0:02:36]} 13. a4 {[%clk 0:02:46]}  Bf8 {[%clk 0:02:34]} 14. Nb3 {[%clk 0:02:45]}  dxe4 {[%clk 0:02:22]} 15. dxe4 {[%clk 0:02:44]}  Nc5 {[%clk 0:02:22]} 16. Nxc5 {[%clk 0:02:20]}  Bxc5 {[%clk 0:02:23]} 17. Bg5 {[%clk 0:02:18]}  Nd7 {[%clk 0:02:23]} 18. Nf5 {[%clk 0:02:18]}  Nf8 {[%clk 0:02:10]} 19. Be2 {[%clk 0:02:13]}  Bg6 {[%clk 0:01:57]} 20. Rad1 {[%clk 0:02:12]}  Ne6 {[%clk 0:01:56]} 21. Bc1 {[%clk 0:02:12]}  Rad8 {[%clk 0:01:54]} 22. Bc4 {[%clk 0:02:11]}  Qb6 {[%clk 0:01:44]} 23. Rf1 {[%clk 0:02:09]}  Nf4 {[%clk 0:01:25]} 24. b3 {[%clk 0:01:49]}  Bh5 {[%clk 0:01:23]} 25. Rxd8 {[%clk 0:01:47]}  Qxd8 {[%clk 0:01:22]} 26. Kh2 {[%clk 0:01:14]}  Qf6 {[%clk 0:01:07]} 27. g3 {[%clk 0:01:12]}  Ne6 {[%clk 0:00:51]} 28. Be3 {[%clk 0:01:11]}  Bf3 {[%clk 0:00:22]} 29. Nh4 {[%clk 0:00:40]}  Bh5 {[%clk 0:00:10]} 30. Be2 {[%clk 0:00:34]}  Bxe2 {[%clk 0:00:06]} 31. Qxe2 {[%clk 0:00:35]}  g6 {[%clk 0:00:05]} 32. Rd1 {[%clk 0:00:32]}  Rd8 {[%clk 0:00:04]} 33. Rb1 {[%clk 0:00:29]}  Bxe3 {[%clk 0:00:03]} 34. Qxe3 {[%clk 0:00:29]}  Kg7 {[%clk 0:00:03]} 35. Nf3 {[%clk 0:00:29]}  Rd7 {[%clk 0:00:03]} 36. Kg2 {[%clk 0:00:29]}  h6 {[%clk 0:00:03]} 37. b4 {[%clk 0:00:28]}  Ng5 {[%clk 0:00:02]} 38. Nxg5 {[%clk 0:00:28]}  hxg5 {[%clk 0:00:03]} 39. bxa5 {[%clk 0:00:28]}  Qe7 {[%clk 0:00:04]} 40. Rb4 {[%clk 0:00:25]}  f6 {[%clk 0:00:04]} 41. Qb6 {[%clk 0:00:25]}  Kh6 {[%clk 0:00:04]} 42. a6 {[%clk 0:00:25]}  bxa6 {[%clk 0:00:04]} 43. Qxc6 {[%clk 0:00:25]}  a5 {[%clk 0:00:03]} 44. Rb8 {[%clk 0:00:25]}  Rd8 {[%clk 0:00:03]} 45. Rb7 {[%clk 0:00:25]}  Qd6 {[%clk 0:00:03]} 46. Qc4 {[%clk 0:00:24]}  Qd3 {[%clk 0:00:02]} 47. Qc6 {[%clk 0:00:24]}  Qe2 {[%clk 0:00:01]} 48. Qc7 {[%clk 0:00:19]}  Qxe4+ {[%clk 0:00:01]} 49. Kh2 {[%clk 0:00:20]} 1-0


[Site "https://www.chess.com"]